Cogmind - Beta 11.2 --- EXPLORER MODE // 2022.12.30 @ 20:48:03 // Winter2022/Polymind Player: Quiddy Result: Destroyed by Y-54 Guardian with Flak Gun Performance ------------- Evolutions (3) 1500 Regions Visited (5) 1000 Robots Destroyed (20) 100 Value Destroyed (760) 760 Prototype IDs (3) 60 Alien Tech Used (0) 0 Bonus (3758) 3758 TOTAL SCORE: 6748 Bonus ------- Polymind Skill 3558 Entered Garrisons 200 Cogmind --------- Core Integrity 0/700 Matter 10/100 Energy 25/25 System Corruption 3% Temperature Cool (28) Movement Rolling (80) Location -7/Garrison Parts ------- > --- POWER (1) -------- (None) > --- PROPULSION (2) --- Wheel > --- UTILITY (1) ------ Medium Matter Pod > --- WEAPON (0) ------- (None) > --- INVENTORY (1) ---- (None) Peak State ------------ > --- POWER ------------ Improved Ion Engine > --- PROPULSION ------- Light Treads Light Treads > --- UTILITY ---------- Heat Sink Heat Sink Light Armor Plating > --- WEAPON ----------- Beam Rifle Heavy Assault Rifle > --- INVENTORY -------- (None) [Rating: 11] Favorites ----------- Power Improved Ion Engine Engine Improved Ion Engine Propulsion Light Treads Treads Light Treads Leg Aluminum Leg Wheel Wheel Utility Heat Sink Device Heat Sink Storage Medium Matter Pod Protection Light Armor Plating Weapon Beam Rifle Energy Gun Beam Rifle Ballistic Gun Heavy Assault Rifle Build | -11 -10 -9 -8 -7 -7 ------- Run | Scr Mat Mat Mat Fac Gar Slots Evolved . | . . . . . . Power . | . . . . . . Propulsion . | . . . . . . Utility . | . . . . . . Weapon . | . . . . . . Parts Attached . | . . . . . . Power . | . . . . . . Engine . | . . . . . . Core . | . . . . . . Reactor . | . . . . . . Propulsion . | . . . . . . Treads . | . . . . . . Leg . | . . . . . . Wheel . | . . . . . . Hover . | . . . . . . Flight . | . . . . . . Utility . | . . . . . . Device . | . . . . . . Storage . | . . . . . . Processor . | . . . . . . Hackware . | . . . . . . Protection . | . . . . . . Artifact . | . . . . . . Weapon . | . . . . . . Energy Gun . | . . . . . . Energy Cannon . | . . . . . . Ballistic Gun . | . . . . . . Ballistic Cannon . | . . . . . . Launcher . | . . . . . . Special Weapon . | . . . . . . Impact Weapon . | . . . . . . Slashing Weapon . | . . . . . . Piercing Weapon . | . . . . . . Special Melee Weapon . | . . . . . . Unidentified Prototypes . | . . . . . . Parts Lost 2 | . . . . . 2 Power 1 | . . . . . 1 Propulsion 1 | . . . . . 1 Utility . | . . . . . . Weapon . | . . . . . . Highest Loss Streak 2 | . . . . . 2 To Critical Strikes . | . . . . . . Average Slot Usage (%) 99 | . 95 100 100 99 70 Engine 12 | . 21 12 12 12 17 Treads 23 | . . 24 25 24 . Wheel 1 | . 22 . . 1 35 Device 24 | . 10 24 25 24 . Protection 11 | . . 11 12 11 . Energy Gun 11 | . 10 11 12 11 . Ballistic Gun 11 | . . 11 12 11 . Naked Turns 116 | . 17 6 . 25 68 Heaviest Build 18 | . 7 18 18 18 5 Greatest Support 40 | 3 20 40 40 40 20 Greatest Overweight (x) . | . . . . . . Average Overweight (x) . | . . . . . . Largest Inventory Capacity 1 | . 1 1 1 1 1 Average Capacity . | . . . 1 . . Most Carried . | . . . . . . Average Carried . | . . . . . . Final Capacity 1 | . 1 1 1 1 1 Final Carried . | . . . . . . Class Distribution -------------------- 95% | Sentry Dominant Class ---------------- Worker | -10/Materials Sentry | -9/Materials Sentry | -8/Materials Sentry | -7/Factory Worker | -7/Garrison Resources | -11 -10 -9 -8 -7 -7 ----------- Run | Scr Mat Mat Mat Fac Gar Matter Collected 247 | . . 15 36 196 . Remotely . | . . . . . . Salvage Created 905 | . 57 72 254 522 . Parts 60 | . 4 3 13 40 . Haulers Intercepted . | . . . . . . Recyclers Shooed . | . . . . . . Parts Field Recycled . | . . . . . . Retrieved Matter . | . . . . . . Parts Self-Destructed . | . . . . . . Prevented . | . . . . . . Kills | -11 -10 -9 -8 -7 -7 ------- Run | Scr Mat Mat Mat Fac Gar Combat Hostiles Destroyed 14 | . 3 1 4 6 . Guns 14 | . 3 1 4 6 . Classes Destroyed 8 | . 1 1 2 4 . Worker 2 | . . . . 2 . Builder 2 | . . . . 2 . Recycler 1 | . . . . 1 . Watcher 1 | . . . 1 . . Grunt 3 | . 3 . . . . Sentry 5 | . . 1 3 1 . Hunter 1 | . . . 1 . . Programmer 5 | . . . . 5 . Best Kill Streak 2 | . 2 1 2 2 . Combat Bots Only 2 | . 2 1 2 1 . Max Kills in Single Turn 1 | . 1 1 1 1 . Gunslinging . | . . . . . . Exploded . | . . . . . . Melee . | . . . . . . Uniques/NPCs Destroyed . | . . . . . . Combat | -11 -10 -9 -8 -7 -7 -------- Run | Scr Mat Mat Mat Fac Gar Damage Taken 1545 | . 319 65 176 169 816 Core 921 | . 166 36 18 37 664 Absorbed by Shields 55 | . . . . . 55 Core Remaining (%) 80 | 100 33 91 96 . . Volleys Fired 60 | . 17 4 12 27 . Largest 2 | . 1 2 2 2 . Hottest 79 | . 40 79 79 79 . Shots Fired 105 | . 17 8 24 56 . Gun 105 | . 17 8 24 56 . Cannon . | . . . . . . Launcher . | . . . . . . Special . | . . . . . . Kinetic 44 | . . 4 12 28 . Thermal 61 | . 17 4 12 28 . Explosive . | . . . . . . Electromagnetic . | . . . . . . Robot Hit Streak 21 | . 17 21 12 17 . Robot Miss Streak 1 | . . 1 1 1 . Penetration Max . | . . . . . . Secondary Targets . | . . . . . . Shots Hit Robots 80 | . 17 6 19 38 . Core Hits 43 | . 10 2 11 20 . Critical Kills . | . . . . . . Critical Parts Destroyed . | . . . . . . Critical Strikes 7 | . . . 2 5 . Burn 7 | . . . 2 5 . Melee Attacks . | . . . . . . Impact . | . . . . . . Slashing . | . . . . . . Piercing . | . . . . . . Sneak Attacks . | . . . . . . Combat Hostiles . | . . . . . . Follow-up Attacks . | . . . . . . Damage Inflicted 1275 | . 214 104 297 621 39 Guns 1206 | . 190 104 297 615 . Cannons . | . . . . . . Explosions . | . . . . . . Melee . | . . . . . . Ramming 69 | . 24 . . 6 39 Kinetic 409 | . . 44 133 232 . Thermal 797 | . 190 60 164 383 . Explosive . | . . . . . . Electromagnetic . | . . . . . . Impact . | . . . . . . Slashing . | . . . . . . Piercing . | . . . . . . Highest Corruption 3 | . 3 . . 3 3 Average Corruption 2 | . 2 . . 2 3 Corruption Purged . | . . . . . . Corruption Blocked . | . . . . . . Effects 41 | . 1 . . 37 3 Message Errors 16 | . . . . 16 . Matter Fused 6 | . . . . 6 . Heat Flow Errors 4 | . . . . 4 . Energy Discharges 5 | . 1 . . 4 . Data Loss (minor) 5 | . . . . 3 2 Data Loss (major) 3 | . . . . 2 1 Misfires 2 | . . . . 2 . Overload Shots . | . . . . . . Overflow Damage . | . . . . . . Projectiles . | . . . . . . Explosions . | . . . . . . Melee . | . . . . . . Knockbacks . | . . . . . . Impact . | . . . . . . Kinetic . | . . . . . . Secondary . | . . . . . . Self-Inflicted Damage 29 | . 7 . . 3 19 Shots . | . . . . . . Rammed 19 | . 12 . . 1 6 Targets Rammed 20 | . 13 . . 1 6 Kicked 1 | . 1 . . . . Crushed . | . . . . . . Highest Temperature 256 | . 108 20 5 256 27 Average Temperature 71 | . 30 13 3 134 12 Received Heat Transfer 822 | . 288 36 54 18 426 Effects 1 | . . . . 1 . Energy Bleed 1 | . . . . 1 . Siege Activations . | . . . . . . Robots Corrupted . | . . . . . . Combat Hostiles . | . . . . . . Parts Fried . | . . . . . . Impact Corruptions . | . . . . . . Robots Melted . | . . . . . . Combat Hostiles . | . . . . . . Parts Melted 3 | . 1 . . 2 . Heat Transferred 2349 | . 425 148 555 1221 . Parts Sabotaged . | . . . . . . Parts Stolen . | . . . . . . Parts Stripped . | . . . . . . Power Chain Reactions . | . . . . . . Missiles Intercepted . | . . . . . . Alert | -11 -10 -9 -8 -7 -7 ------- Run | Scr Mat Mat Mat Fac Gar Peak Influence 300 | . 125 37 300 40 250 Initial 37 | . . 37 . . . Average 11 | . 85 3 14 6 119 Maximum Alert Level 1 | . . . 1 . 1 Low Security (%) 98 | . 100 100 96 100 56 Level 1 1 | . . . 3 . 43 Level 2 . | . . . . . . Level 3 . | . . . . . . Level 4 . | . . . . . . Level 5 . | . . . . . . High Security . | . . . . . . Max Security . | . . . . . . Squads Dispatched 9 | . . 1 1 7 . Investigation . | . . . . . . Extermination 7 | . . . . 7 . Reinforcement 2 | . . 1 1 . . Assault . | . . . . . . Garrison . | . . . . . . Intercept . | . . . . . . Searches Triggered . | . . . . . . Construction Impeded . | . . . . . . Haulers Reinforced . | . . . . . . Active Scanning Responses . | . . . . . . Cargo Convoy Interrupts . | . . . . . . Stealth | -11 -10 -9 -8 -7 -7 --------- Run | Scr Mat Mat Mat Fac Gar Distress Signals 1 | . 1 . . . . Communications Jammed . | . . . . . . Distress Signals . | . . . . . . Times Spotted 31 | . 8 3 5 5 10 Peak Tracking Total 7 | . 4 2 2 2 7 Tactical Retreats . | . . . . . . Traps | -11 -10 -9 -8 -7 -7 ------- Run | Scr Mat Mat Mat Fac Gar Traps Triggered 3 | . 1 . . . 2 Indirectly . | . . . . . . Trap Hack Attempts . | . . . . . . Triggered . | . . . . . . Disarmed . | . . . . . . Reprogrammed . | . . . . . . Reused . | . . . . . . Traps Extracted . | . . . . . . Installed . | . . . . . . Triggered . | . . . . . . Machines | -11 -10 -9 -8 -7 -7 ---------- Run | Scr Mat Mat Mat Fac Gar Machines Disabled . | . . . . . . Max in Single Turn . | . . . . . . Machines Sabotaged . | . . . . . . Garrisons Compromised . | . . . . . . Overloaded Fab Kills . | . . . . . . Hacking | -11 -10 -9 -8 -7 -7 --------- Run | Scr Mat Mat Mat Fac Gar Machines Accessed 2 | . . . 1 1 . Terminals 1 | . . . 1 . . Fabricators . | . . . . . . Repair Stations . | . . . . . . Recycling Units . | . . . . . . Scanalyzers . | . . . . . . Garrison Access 1 | . . . . 1 . Total Hacks 4 | . . . 3 1 . Successful 4 | . . . 3 1 . Failed . | . . . . . . Catastrophic . | . . . . . . Database Lockouts . | . . . . . . Manual . | . . . . . . Terminals 3 | . . . 3 . . Fabricators . | . . . . . . Repair Stations . | . . . . . . Recycling Units . | . . . . . . Scanalyzers . | . . . . . . Garrison Access 1 | . . . . 1 . Terminal Hacks 3 | . . . 3 . . Prototype ID Bank 1 | . . . 1 . . Alert Level 1 | . . . 1 . . Patrol Status 1 | . . . 1 . . Fabricator Hacks . | . . . . . . Repair Station Hacks . | . . . . . . Recycling Unit Hacks . | . . . . . . Scanalyzer . | . . . . . . Garrison Access Hacks 1 | . . . . 1 . Unlock Access 1 | . . . . 1 . Unauthorized Hacks . | . . . . . . Terminals . | . . . . . . Fabricators . | . . . . . . Repair Stations . | . . . . . . Recycling Units . | . . . . . . Scanalyzers . | . . . . . . Garrison Access . | . . . . . . Data Cores Recovered . | . . . . . . Used . | . . . . . . Hacking Detections 1 | . . . 1 . . Full Trace Events . | . . . . . . Feedback Events . | . . . . . . Feedback Blocked . | . . . . . . Robot Schematics Acquired . | . . . . . . Robots Built . | . . . . . . Authchips . | . . . . . . Time . | . . . . . . Total Robot Build Rating . | . . . . . . Part Schematics Acquired . | . . . . . . Parts Built . | . . . . . . Authchips . | . . . . . . Time . | . . . . . . Total Part Build Rating . | . . . . . . Parts Repaired . | . . . . . . Time . | . . . . . . Parts Recycled . | . . . . . . Recycled Matter . | . . . . . . Retrieved Matter . | . . . . . . Retrieved Components . | . . . . . . Parts Scanalyzed . | . . . . . . Part Schematics Acquired . | . . . . . . Parts Damaged . | . . . . . . Bothacking | -11 -10 -9 -8 -7 -7 ------------ Run | Scr Mat Mat Mat Fac Gar Used RIF Installer . | . . . . . . Robots Hacked 4 | . 1 2 . 1 . Non-combat 1 | . . . . 1 . Combat 3 | . 1 2 . . . Robot Hacks Applied 4 | . 1 2 . 1 . find_chute 1 | . . . . 1 . find_shortcuts 3 | . 1 2 . . . Relay Couplers Released . | . . . . . . Fabnet Peak Effective % . | . . . . . . Robots Rewired . | . . . . . . Allies Hacked . | . . . . . . Hacks Repelled . | . . . . . . Allies | -11 -10 -9 -8 -7 -7 -------- Run | Scr Mat Mat Mat Fac Gar Total Allies . | . . . . . . Largest Group . | . . . . . . Highest-Rated Group . | . . . . . . Highest-Rated Ally . | . . . . . . Total Orders . | . . . . . . Ally Attacks . | . . . . . . Total Damage . | . . . . . . Kills . | . . . . . . Allies Corrupted . | . . . . . . Allies Melted . | . . . . . . Intel | -11 -10 -9 -8 -7 -7 ------- Run | Scr Mat Mat Mat Fac Gar Robot Analysis Total 3 | . 2 1 . . . Derelict Logs Recovered . | . . . . . . Drone Launches . | . . . . . . Drone Recoveries . | . . . . . . Exploration | -11 -10 -9 -8 -7 -7 ------------- Run | Scr Mat Mat Mat Fac Gar Turns Passed 16159 | . 206 4975 5078 5651 249 Spaces Moved 1420 | 1 179 295 268 402 275 Core 169 | 1 26 12 . 48 82 Treads 659 | . . 223 268 168 . Legs 48 | . 48 . . . . Wheels 544 | . 105 60 . 186 193 Hover . | . . . . . . Flight . | . . . . . . Fastest Speed 50 | 50 50 50 160 50 50 Average Speed 114 | 50 86 139 160 109 71 Slowest Speed 160 | 50 120 160 160 160 80 Overloaded Moves . | . . . . . . Propulsion Burnouts . | . . . . . . Robots Hopped . | . . . . . . Cave-ins Triggered . | . . . . . . Exploration Rate (%) 22 | 2 31 17 23 16 43 Regions Visited 5 Branch Regions . Pre-discovered Areas . | . . . . . . Known Exits Taken 5 | 1 1 1 1 1 . Unknown Exits Taken . | . . . . . . Scrap Searched . | . . . . . . Spaces Dug . | . . . . . . Terrain Destroyed . | . . . . . . Melee . | . . . . . . Projectile . | . . . . . . AOE . | . . . . . . Terrain Rammed . | . . . . . . Walls Destroyed . | . . . . . . Machines Disabled . | . . . . . . Actions | -11 -10 -9 -8 -7 -7 --------- Run | Scr Mat Mat Mat Fac Gar Total 15840 | . 212 4851 4893 5557 327 Wait 14328 | . 4 4553 4614 5128 29 Move 1410 | . 178 294 267 401 270 Hop . | . . . . . . Pick Up . | . . . . . . Fast Attach . | . . . . . . Attach . | . . . . . . Detach . | . . . . . . Swap . | . . . . . . Drop . | . . . . . . Fire 60 | . 17 4 12 27 . Melee . | . . . . . . Ram 19 | . 12 . . 1 6 Kick 1 | . 1 . . . . Crush . | . . . . . . Escape Stasis 22 | . . . . . 22 Rewire . | . . . . . . Trap . | . . . . . . Miscellaneous . | . . . . . . Route ------- -11/Scrapyard -10/Materials -9/Materials -8/Materials -7/Factory -7/Garrison (discovered 1 exit: *Fac) History --------- Turn | Location | Event 1 | -11/Scrapyard | Identified exit to Materials 1 | -11/Scrapyard | Discovered exit to Materials (range 0) 1 | -11/Scrapyard | Entered Materials 132 | -10/Materials | Identified exit to Materials 132 | -10/Materials | Discovered exit to Materials (range 13) 176 | -10/Materials | Core integrity fell below 50% 207 | -10/Materials | Entered another Materials area 5158 | -9/Materials | Identified exit to Materials 5158 | -9/Materials | Discovered exit to Materials (range 16) 5182 | -9/Materials | Entered another Materials area 10248 | -8/Materials | Identified exit to Factory 10248 | -8/Materials | Discovered exit to Factory (range 5) 10260 | -8/Materials | Entered Factory 15909 | -7/Factory | Identified exit to Garrison 15911 | -7/Factory | Entered Garrison 15942 | -7/Garrison | Triggered checkpoint 15960 | -7/Garrison | Triggered checkpoint 15968 | -7/Garrison | Triggered checkpoint 15998 | -7/Garrison | Identified exit to Factory 15998 | -7/Garrison | Discovered exit to Factory (range 13) 16009 | -7/Garrison | Attempted to access garrison exit controls, blocked by remote lockdown 16046 | -7/Garrison | Triggered checkpoint 16109 | -7/Garrison | Core integrity fell below 50% 16136 | -7/Garrison | Core integrity fell below 20% 16160 | -7/Garrison | Destroyed by Y-54 Guardian with Flak Gun Last Messages --------------- Field strength at 94. Field strength at 88. Field strength at 80. Penetrated by Slug. Field strength at 68. Field strength at 56. Field strength at 50. Slug penetrates Wall. Field strength at 39. Field strength at 33. Field strength at 21. Penetrated by Slug. Field strength at 10. Field strength at 1. Stasis field depleted. Penetrated by Slug. K-01 Serf collects debris. Took control of K-01 Serf. Lgt. Ion Engine destroyed. Wheel destroyed. Map ----- +----------------------------------------------------+ | ??????????????????????????????????????# #??????? | | ??????????????????????????????????????# % #??????? | | ??????????????????????????????????????# #??????? | | ??????????????????????????????????????# #######? | | ??????????????????????????????????????# #? | | ??????????????????????????????????????# % #? | | ??????????????????????????????????????# % #### #? | | ??????????????????????????????????????# % #??# ## | | ??????????????????????????????????????# #??# | | ??????????????????????????????????????# #??# | | ??????????????????????????????????????# #??# | | ??????????????????????????????????????# #??# ## | | ??????????????????###?????????????????# %#??# #? | | ?????????????????? ?????????????????# %#??# #? | | ?????????????????? ^ #????????????????# #??# ## | | ??????????????????# #????????????????# #??# #" | | ??????????????????# #????????????????# #??# " | | ??????????????????# #????????????????# #??# " | | ??????????????????# #????????????????# #??# " | | ??????????????????# #????????????????/ #??# #" | | ??????????????????# #######??????????#^ #??##### | | ??????????????????# ## #??????????# ^ #??????? | | ?????????????#???## ## ###+########^ ^#??????? | | ????????# ###+### g #??????? | | ????????# #??????? | | ????????# k #??????? | | ????????????###### ## ## ###########??????? | | ???????????????### ##Y ## #????????????????? | | ???????????????# "????????????????? | | ???????????????# "????????????????? | | ???????????????# "????????????????? | | ???????????????# "????????????????? | | ???????????????### g## ## #????????????????? | | ???????########### ## ## #####????????????? | | ???????# g g ???????????? | | ???????# ^ ???????????? | | ???????# ######## ???????????? | | ???????# #??????###### ##++#####?????????????? | | ???????# #???????????# #?????????????????????? | | ???????# #???????????######?????????????????????? | | ???????# #??????????????????????????????????????? | | ???????# #??????????????????????????????????????? | | ???????# #??????????????????????????????????????? | | ???????# #??????????????????????????????????????? | | ???????# #??????????????????????????????????????? | | ???????# #??????????????????????????????????????? | | ######## #??????????????????????????????????????? | | ^ #??????????????????????????????????????? | | ^^ #??????????????????????????????????????? | | ##### ###??????????????????????????????????????? | +----------------------------------------------------+ Best States ------------- Heat Dissipation 42 Energy Generation 17 Energy Capacity 215 Matter Stores 100 Matter Capacity 100 Sight Range 16 Terrain Scan Density 10 Armor Coverage 150 Resistance: KI 35 Resistance: TH 35 Resistance: EX 85 Resistance: EM 35 Resistance: I 60 Resistance: S 35 Resistance: P 35 Evasion (%) 55 Recoil Reduction 2 Offensive Hacking 20 Item Schematics ----------------- None Robot Schematics ------------------ None Fabricated ------------ Nothing Alien Tech Used ----------------- None Achievements -------------- None Challenges ------------ None Polymind | -11 -10 -9 -8 -7 -7 ---------- Run | Scr Mat Mat Mat Fac Gar Hosts 6 | . 2 2 . 1 1 Combat Hostiles 3 | . 1 2 . . . Allies . | . . . . . . Unique Host Classes 3 | . 2 1 . . . Average Host Suspicion 30 | . 99 21 33 33 61 Unsuspicious Activity 13739 | . 24 4126 4372 5202 15 Returns to Shadow 6 | . . 1 2 3 . Fuzzy Dispatches 7 | . . . . 7 . Protomatter Created 113 | . 52 . 30 31 . Used 76 | . 20 46 . 5 5 Decayed 90 | . 29 . 30 31 . Highest Spend 23 | . 15 23 . 5 5 Top 5 Hosts by Kills: Y-45 Defender (-9/Materials: 11) G-34 Mercenary (-10/Materials: 3) Game ------ Seed StasisMetafieldMallet Manual? 0 Play Time 00:30:36 Cumulative 99.8 hours Start 2022.12.30 @ 20:08:24 End 2022.12.30 @ 20:48:03 Sessions 1 Manual Loads 0 Difficulty Explorer Special Mode Winter2022/Polymind Game No. 167 Rogue 89 Adventurer 0 Explorer 78 Win Type - Total 0 Types 0/0/0/0/0/0/0/0/0 Lore% 32 Gallery% 31 Achievement% 23 Wizard Run 0 Options --------- ASCII 0 Keyboard 0 Movement Numpad Keybinds 0 Fullscreen 1 Font 16/Dina Map View 76x50 Tactical HUD 0 Map Filters NONE Filters NONE Steam 1 RUN: 9c388756-a0a8-4240-9888-1922bcc7b3cd